[Event "IND-ch Women 2019"]
[Site "Karaikkudi"]
[Date "2019.07.23"]
[Round "7.3"]
[White "Michelle Catherina, P."]
[Black "Nandhidhaa, P V"]
[Result "1/2-1/2"]
[ECO "B80"]
[WhiteElo "2226"]
[BlackElo "2259"]
[Annotator "ChessBase"]
[PlyCount "74"]
[EventDate "2019.07.19"]
[EventType "swiss"]
[EventCountry "IND"]
[SourceTitle "playchess.com"]
[Source "ChessBase"]
[SourceQuality "1"]
[TimeControl "40/5400+30:1800+30"]

1. e4 {[%emt 0:01:38]} c5 {[%emt 0:00:00]} 2. Nf3 {[%emt 0:00:06]} e6 {[%emt 0:00:00]} 3. d4 {[%emt 0:00:13]} cxd4 {[%emt 0:00:00]} 4. Nxd4 {[%emt 0:00:03]} Nc6 {[%emt 0:00:00]} 5. Nc3 {[%emt 0:00:12]} Qc7 {[%emt 0:00:00]} 6. g3 {[%emt 0:00:11]} a6 {[%emt 0:01:19]} 7. Bg2 {[%emt 0:00:06]} d6 {[%emt 0:00:24]} 8. O-O {[%emt 0:00:31]} Bd7 {[%emt 0:00:04]} 9. Re1 {[%emt 0:04:28]} Be7 {[%emt 0:00:51]} 10. Nxc6 {[%emt 0:05:27]} Bxc6 {[%emt 0:00:31]} 11. a4 {[%emt 0:05:04]} Nf6 {[%emt 0:02:07]} 12. a5 {[%emt 0:04:04]} O-O {[%emt 0:01:14]} 13. Be3 {[%emt 0:01:44]} Nd7 {[%emt 0:00:33]} 14. Na4 {[%emt 0:05:51]} Bxa4 {[%emt 0:00:33]} 15. Rxa4 {[%emt 0:00:08]} Rac8 {[%emt 0:00:42]} 16. c3 {[%emt 0:02:56]} Ne5 {[%emt 0:04:36]} 17. Bf1 {[%emt 0:11:27]} Qd7 {[%emt 0:19:47]} 18. Be2 {[%emt 0:02:41]} Nc6 {[%emt 0:01:48]} 19. Bf4 {[%emt 0:05:39]} Qc7 {[%emt 0:04:40]} 20. Qa1 {[%emt 0:08:02]} Bd8 {[%emt 0:04:09]} 21. b4 {[%emt 0:02:30]} Ne5 {[%emt 0:01:56]} 22. c4 {[%emt 0:03:55]} Bf6 {[%emt 0:05:25]} 23. Qa2 {[%emt 0:04:25]} Qc6 {[%emt 0:11:35]} 24. Bxe5 {[%emt 0:12:14]} Bxe5 {[%emt 0:00:53]} 25. Bd3 {[%emt 0:02:34]} Bd4 {[%emt 0:03:39]} 26. Ra3 {[%emt 0:04:21]} Rfe8 {[%emt 0:06:13]} 27. Rd1 {[%emt 0:05:10]} g6 {[%emt 0:05:15]} 28. Rb3 {[%emt 0:01:44]} h5 {[%emt 0:05:20]} 29. Qd2 {[%emt 0:02:17]} Be5 {[%emt 0:06:33]} 30. h4 {[%emt 0:01:55]} Kg7 {[%emt 0:03:01]} 31. Rbb1 {[%emt 0:01:41]} Qc7 {[%emt 0:06:04]} 32. Bf1 {[%emt 0:00:28]} Qc6 {[%emt 0:00:35]} 33. Qd3 {[%emt 0:01:13]} Red8 {[%emt 0:01:47]} 34. Qe3 {[%emt 0:00:43]} Bf6 {[%emt 0:01:58]} 35. Be2 {[%emt 0:00:22]} Be5 {[%emt 0:01:47]} 36. Bf1 {[%emt 0:00:05]} Bf6 {[%emt 0:00:04]} 37. Be2 {[%emt 0:00:04]} Be5 {[%emt 0:03:07]} 1/2-1/2

[Event "IND-ch Women 2019"]
[Site "Karaikkudi"]
[Date "2019.07.23"]
[Round "7.4"]
[White "Meenakshi Subbaraman"]
[Black "Swati Ghate"]
[Result "1-0"]
[ECO "E35"]
[WhiteElo "2163"]
[BlackElo "2192"]
[Annotator "ChessBase"]
[PlyCount "71"]
[EventDate "2019.07.19"]
[EventType "swiss"]
[EventCountry "IND"]
[SourceTitle "playchess.com"]
[Source "ChessBase"]
[SourceQuality "1"]
[TimeControl "40/5400+30:1800+30"]

1. d4 {[%emt 0:00:51]} Nf6 {[%emt 0:00:43]} 2. c4 {[%emt 0:00:26]} e6 {[%emt 0:00:10]} 3. Nc3 {[%emt 0:00:24]} Bb4 {[%emt 0:00:34]} 4. Qc2 {[%emt 0:00:28]} d5 {[%emt 0:00:38]} 5. cxd5 {[%emt 0:00:51]} exd5 {[%emt 0:00:12]} 6. Bg5 {[%emt 0:00:19]} h6 {[%emt 0:00:56]} 7. Bxf6 {[%emt 0:00:20]} Qxf6 {[%emt 0:00:19]} 8. e3 {[%emt 0:00:10]} O-O {[%emt 0:03:36]} 9. a3 {[%emt 0:03:36]} Bf5 {[%emt 0:06:37]} 10. Qb3 {[%emt 0:08:44]} Bxc3+ {[%emt 0:01:17]} 11. Qxc3 {[%emt 0:00:03]} Nd7 {[%emt 0:05:31]} 12. Nf3 {[%emt 0:00:17]} c5 {[%emt 0:03:33]} 13. Bb5 {[%emt 0:02:51]} c4 {[%emt 0:09:40]} 14. Bxd7 {[%emt 0:00:32]} Bxd7 {[%emt 0:00:01]} 15. O-O {[%emt 0:04:21]} Qd6 {[%emt 0:16:03]} 16. Rfe1 {[%emt 0:02:54]} b5 {[%emt 0:04:23]} 17. Ne5 {[%emt 0:19:18]} Bf5 {[%emt 0:05:06]} 18. Qa5 {[%emt 0:23:31]} Rfb8 {[%emt 0:02:08]} 19. Rac1 {[%emt 0:04:12]} f6 {[%emt 0:07:26]} 20. Nf3 {[%emt 0:00:02]} Rb6 {[%emt 0:08:54]} 21. h3 {[%emt 0:01:56]} Bd3 {[%emt 0:02:30]} 22. Nd2 {[%emt 0:01:40]} a6 {[%emt 0:12:21]} 23. Red1 {[%emt 0:07:38]} b4 {[%emt 0:01:50]} 24. a4 {[%emt 0:06:10]} Rc8 {[%emt 0:01:47]} 25. Nb3 {[%emt 0:00:32]} Bg6 {[%emt 0:05:27]} 26. Nc5 {[%emt 0:00:16]} Rcc6 {[%emt 0:00:41]} 27. Re1 {[%emt 0:01:36]} c3 {[%emt 0:00:25]} 28. bxc3 {[%emt 0:03:02]} b3 {[%emt 0:00:01]} 29. e4 {[%emt 0:00:12]} b2 {[%emt 0:01:00]} 30. Rb1 {[%emt 0:00:46]} dxe4 {[%emt 0:00:26]} 31. Re2 {[%emt 0:02:33]} e3 {[%emt 0:00:37]} 32. Rbxb2 {[%emt 0:00:29]} Rxb2 {[%emt 0:00:25]} 33. Rxb2 {[%emt 0:00:06]} Qf4 {[%emt 0:00:34]} 34. Qd8+ {[%emt 0:04:30]} Kh7 {[%emt 0:00:01]} 35. Nd7 {[%emt 0:00:46]} Qc7 {[%emt 0:01:02]} 36. Nf8+ {[%emt 0:00:37]} 1-0

[Event "IND-ch Women 2019"]
[Site "Karaikkudi"]
[Date "2019.07.23"]
[Round "7.5"]
[White "Harshita Guddanti"]
[Black "Srija, Seshadri"]
[Result "1/2-1/2"]
[ECO "C47"]
[WhiteElo "2078"]
[BlackElo "2306"]
[Annotator "ChessBase"]
[PlyCount "140"]
[EventDate "2019.07.19"]
[EventType "swiss"]
[EventCountry "IND"]
[SourceTitle "playchess.com"]
[Source "ChessBase"]
[SourceQuality "1"]
[TimeControl "40/5400+30:1800+30"]

1. e4 {[%emt 0:00:00]} e5 {[%emt 0:00:00]} 2. Nf3 {[%emt 0:00:00]} Nc6 {[%emt 0:00:00]} 3. Nc3 {[%emt 0:01:21]} Nf6 {[%emt 0:00:05]} 4. g3 {[%emt 0:00:57]} d5 {[%emt 0:01:54]} 5. exd5 {[%emt 0:00:34]} Nxd5 {[%emt 0:00:09]} 6. Bg2 {[%emt 0:00:06]} Nxc3 {[%emt 0:02:09]} 7. bxc3 {[%emt 0:00:31]} Bc5 {[%emt 0:00:21]} 8. O-O {[%emt 0:00:32]} O-O {[%emt 0:00:23]} 9. Re1 {[%emt 0:01:03]} Bg4 {[%emt 0:01:09]} 10. Qe2 {[%emt 0:09:22]} Qd7 {[%emt 0:05:15]} 11. Qc4 {[%emt 0:07:49]} Qf5 {[%emt 0:08:52]} 12. Qxc5 {[%emt 0:05:16]} Bxf3 {[%emt 0:00:07]} 13. Bxf3 {[%emt 0:05:08]} Qxf3 {[%emt 0:00:01]} 14. Rb1 {[%emt 0:01:34]} Rab8 {[%emt 0:12:26]} 15. d4 {[%emt 0:14:58]} b6 {[%emt 0:19:13]} 16. Qc4 {[%emt 0:03:14]} Rfe8 {[%emt 0:09:52]} 17. Bb2 {[%emt 0:07:19]} h5 {[%emt 0:11:18]} 18. Re3 {[%emt 0:03:06]} Qf6 {[%emt 0:00:13]} 19. Qe2 {[%emt 0:08:43]} Qf5 {[%emt 0:06:04]} 20. d5 {[%emt 0:07:33]} Na5 {[%emt 0:01:04]} 21. c4 {[%emt 0:00:51]} Qg4 {[%emt 0:01:07]} 22. Qxg4 {[%emt 0:02:33]} hxg4 {[%emt 0:00:02]} 23. Re4 {[%emt 0:01:02]} f5 {[%emt 0:08:13]} 24. Rxe5 {[%emt 0:00:06]} Nxc4 {[%emt 0:01:15]} 25. Rxf5 {[%emt 0:01:50]} Re2 {[%emt 0:00:11]} 26. Rf4 {[%emt 0:06:43]} Nd2 {[%emt 0:03:05]} 27. Rc1 {[%emt 0:01:40]} Rf8 {[%emt 0:01:56]} 28. Rxf8+ {[%emt 0:01:49]} Kxf8 {[%emt 0:00:01]} 29. Bc3 {[%emt 0:02:55]} Kf7 {[%emt 0:02:03]} 30. Kg2 {[%emt 0:03:56]} Ne4 {[%emt 0:01:01]} 31. Be1 {[%emt 0:01:19]} Nd2 {[%emt 0:00:54]} 32. Bxd2 {[%emt 0:00:58]} Rxd2 {[%emt 0:00:01]} 33. c4 {[%emt 0:00:34]} Rxa2 {[%emt 0:00:05]} 34. c5 {[%emt 0:00:19]} Ra5 {[%emt 0:02:45]} 35. d6 {[%emt 0:00:43]} c6 {[%emt 0:00:55]} 36. cxb6 {[%emt 0:00:22]} axb6 {[%emt 0:00:32]} 37. Rxc6 {[%emt 0:00:04]} Rb5 {[%emt 0:02:05]} 38. d7 {[%emt 0:00:24]} Ke7 {[%emt 0:00:13]} 39. Rg6 {[%emt 0:00:12]} Kxd7 {[%emt 0:00:04]} 40. Rxg7+ {[%emt 0:00:00]} Kc6 {[%emt 0:00:00]} 41. Rxg4 {[%emt 0:01:11]} Re5 {[%emt 0:01:10]} 42. Kf3 {[%emt 0:10:25]} b5 {[%emt 0:00:31]} 43. Re4 {[%emt 0:01:03]} Rh5 {[%emt 0:01:55]} 44. h4 {[%emt 0:01:02]} Kc5 {[%emt 0:00:22]} 45. Kg4 {[%emt 0:01:02]} Rh8 {[%emt 0:00:25]} 46. h5 {[%emt 0:02:11]} b4 {[%emt 0:00:22]} 47. Re7 {[%emt 0:02:18]} Rb8 {[%emt 0:00:35]} 48. h6 {[%emt 0:02:34]} b3 {[%emt 0:00:52]} 49. h7 {[%emt 0:01:40]} b2 {[%emt 0:00:14]} 50. Re1 {[%emt 0:00:13]} Kc4 {[%emt 0:00:43]} 51. Kg5 {[%emt 0:00:42]} Rb5+ {[%emt 0:00:24]} 52. Kg4 {[%emt 0:06:33]} Rb8 {[%emt 0:00:06]} 53. Kg5 {[%emt 0:05:07]} Rb5+ {[%emt 0:00:05]} 54. Kg4 {[%emt 0:00:03]} Rb8 {[%emt 0:00:06]} 55. Rb1 {[%emt 0:00:49]} Kc3 {[%emt 0:00:12]} 56. f4 {[%emt 0:01:08]} Rh8 {[%emt 0:00:09]} 57. f5 {[%emt 0:00:44]} Rxh7 {[%emt 0:00:06]} 58. f6 {[%emt 0:00:28]} Kc2 {[%emt 0:04:12]} 59. Rxb2+ {[%emt 0:00:06]} Kxb2 {[%emt 0:00:04]} 60. Kf5 {[%emt 0:00:25]} Kc3 {[%emt 0:00:42]} 61. g4 {[%emt 0:01:17]} Kd4 {[%emt 0:03:02]} 62. Ke6 {[%emt 0:00:47]} Ke4 {[%emt 0:06:37]} 63. g5 {[%emt 0:00:30]} Ra7 {[%emt 0:00:10]} 64. f7 {[%emt 0:01:17]} Ra6+ {[%emt 0:00:06]} 65. Ke7 {[%emt 0:00:13]} Ra7+ {[%emt 0:00:05]} 66. Kf6 {[%emt 0:00:21]} Ra6+ {[%emt 0:00:16]} 67. Kg7 {[%emt 0:00:42]} Ra8 {[%emt 0:00:06]} 68. g6 {[%emt 0:00:27]} Kf5 {[%emt 0:00:04]} 69. f8=Q+ {[%emt 0:00:14]} Rxf8 {[%emt 0:00:03]} 70. Kxf8 {[%emt 0:00:03]} Kxg6 {[%emt 0:00:04]} 1/2-1/2

[Event "IND-ch Women 2019"]
[Site "Karaikkudi"]
[Date "2019.07.23"]
[Round "7.6"]
[White "Gomes, Mary Ann"]
[Black "Priyanka Nutakki"]
[Result "1-0"]
[ECO "A14"]
[WhiteElo "2303"]
[BlackElo "2293"]
[Annotator "ChessBase"]
[PlyCount "83"]
[EventDate "2019.07.19"]
[EventType "swiss"]
[EventCountry "IND"]
[SourceTitle "playchess.com"]
[Source "ChessBase"]
[SourceQuality "1"]
[TimeControl "40/5400+30:1800+30"]

1. Nf3 {[%emt 0:00:00]} d5 {[%emt 0:00:00]} 2. c4 {[%emt 0:00:46]} e6 {[%emt 0:00:00]} 3. g3 {[%emt 0:00:20]} Nf6 {[%emt 0:00:01]} 4. Bg2 {[%emt 0:00:19]} Be7 {[%emt 0:00:11]} 5. O-O {[%emt 0:00:33]} O-O {[%emt 0:00:08]} 6. b3 {[%emt 0:00:47]} d4 {[%emt 0:01:53]} 7. e3 {[%emt 0:00:17]} c5 {[%emt 0:00:17]} 8. exd4 {[%emt 0:00:12]} cxd4 {[%emt 0:00:06]} 9. Bb2 {[%emt 0:01:56]} Nc6 {[%emt 0:00:07]} 10. Re1 {[%emt 0:00:09]} Ne8 {[%emt 0:01:46]} 11. d3 {[%emt 0:00:36]} f6 {[%emt 0:01:20]} 12. Na3 {[%emt 0:00:09]} e5 {[%emt 0:00:12]} 13. Nc2 {[%emt 0:00:07]} Nc7 {[%emt 0:05:41]} 14. Qe2 {[%emt 0:00:19]} Be6 {[%emt 0:01:54]} 15. a3 {[%emt 0:01:22]} a5 {[%emt 0:00:53]} 16. Rab1 {[%emt 0:00:43]} Qd7 {[%emt 0:03:07]} 17. Ba1 {[%emt 0:04:09]} Rfe8 {[%emt 0:07:46]} 18. b4 {[%emt 0:06:21]} axb4 {[%emt 0:00:08]} 19. axb4 {[%emt 0:01:30]} Ra2 {[%emt 0:01:16]} 20. b5 {[%emt 0:00:52]} Nb4 {[%emt 0:04:42]} 21. Rb2 {[%emt 0:02:35]} Rxb2 {[%emt 0:06:25]} 22. Bxb2 {[%emt 0:00:07]} e4 {[%emt 0:01:00]} 23. Qxe4 {[%emt 0:35:44]} Nxc2 {[%emt 0:00:07]} 24. Re2 {[%emt 0:00:17]} Bd5 {[%emt 0:29:08]} 25. cxd5 {[%emt 0:09:59]} Bc5 {[%emt 0:00:18]} 26. Rxc2 {[%emt 0:04:29]} Rxe4 {[%emt 0:00:05]} 27. dxe4 {[%emt 0:00:05]} Qxb5 {[%emt 0:00:18]} 28. Bf1 {[%emt 0:00:23]} Qb6 {[%emt 0:06:39]} 29. Nxd4 {[%emt 0:07:13]} Na6 {[%emt 0:07:43]} 30. Nb5 {[%emt 0:07:38]} h5 {[%emt 0:05:43]} 31. e5 {[%emt 0:03:34]} fxe5 {[%emt 0:01:21]} 32. Bxe5 {[%emt 0:00:06]} Nb4 {[%emt 0:02:16]} 33. Rd2 {[%emt 0:05:56]} Qg6 {[%emt 0:04:46]} 34. d6 {[%emt 0:00:50]} Nc6 {[%emt 0:00:12]} 35. d7 {[%emt 0:01:41]} Be7 {[%emt 0:02:15]} 36. Bc7 {[%emt 0:00:41]} Qg5 {[%emt 0:00:28]} 37. Bc4+ {[%emt 0:00:49]} Kh7 {[%emt 0:01:53]} 38. Rd5 {[%emt 0:00:38]} Qc1+ {[%emt 0:00:52]} 39. Bf1 {[%emt 0:00:05]} Bd8 {[%emt 0:01:25]} 40. Bxd8 {[%emt 0:00:00]} Nxd8 {[%emt 0:00:00]} 41. Rxh5+ {[%emt 0:00:39]} Kg8 {[%emt 0:00:52]} 42. Re5 {[%emt 0:00:21]} 1-0

[Event "IND-ch Women 2019"]
[Site "Karaikkudi"]
[Date "2019.07.23"]
[Round "7.7"]
[White "Saranya, J."]
[Black "Divya Deshmukh"]
[Result "0-1"]
[ECO "B80"]
[WhiteElo "2067"]
[BlackElo "2373"]
[Annotator "ChessBase"]
[PlyCount "76"]
[EventDate "2019.07.19"]
[EventType "swiss"]
[EventCountry "IND"]
[SourceTitle "playchess.com"]
[Source "ChessBase"]
[SourceQuality "1"]
[TimeControl "40/5400+30:1800+30"]

1. e4 {[%emt 0:00:00]} c5 {[%emt 0:00:00]} 2. Nf3 {[%emt 0:00:00]} d6 {[%emt 0:00:00]} 3. d4 {[%emt 0:00:06]} cxd4 {[%emt 0:00:00]} 4. Nxd4 {[%emt 0:00:04]} Nf6 {[%emt 0:00:00]} 5. Nc3 {[%emt 0:00:07]} a6 {[%emt 0:00:00]} 6. f3 {[%emt 0:00:17]} e6 {[%emt 0:00:12]} 7. Be3 {[%emt 0:00:30]} Qc7 {[%emt 0:00:11]} 8. Qd2 {[%emt 0:00:56]} b5 {[%emt 0:00:40]} 9. g4 {[%emt 0:08:05]} Bb7 {[%emt 0:01:00]} 10. O-O-O {[%emt 0:03:52]} Nc6 {[%emt 0:00:32]} 11. Kb1 {[%emt 0:07:35]} Be7 {[%emt 0:01:02]} 12. Bd3 {[%emt 0:03:04]} Rc8 {[%emt 0:05:36]} 13. g5 {[%emt 0:05:22]} Nd7 {[%emt 0:00:35]} 14. f4 {[%emt 0:00:20]} Nc5 {[%emt 0:02:56]} 15. Nb3 {[%emt 0:10:07]} b4 {[%emt 0:16:59]} 16. Ne2 {[%emt 0:00:39]} a5 {[%emt 0:00:13]} 17. Ng3 {[%emt 0:02:32]} a4 {[%emt 0:20:17]} 18. Nc1 {[%emt 0:06:24]} a3 {[%emt 0:10:11]} 19. b3 {[%emt 0:01:39]} Qa5 {[%emt 0:00:14]} 20. Nh5 {[%emt 0:12:09]} O-O {[%emt 0:11:03]} 21. Rhg1 {[%emt 0:04:04]} Na7 {[%emt 0:04:11]} 22. Bc4 {[%emt 0:12:56]} Nxe4 {[%emt 0:04:23]} 23. Qd4 {[%emt 0:00:25]} e5 {[%emt 0:00:02]} 24. fxe5 {[%emt 0:05:13]} dxe5 {[%emt 0:00:18]} 25. Qd7 {[%emt 0:03:00]} Rc7 {[%emt 0:02:20]} 26. Qf5 {[%emt 0:03:18]} Nc3+ {[%emt 0:00:22]} 27. Ka1 {[%emt 0:00:02]} Be4 {[%emt 0:00:09]} 28. Qg4 {[%emt 0:04:24]} Bg6 {[%emt 0:00:07]} 29. Rdf1 {[%emt 0:01:42]} Bc5 {[%emt 0:01:23]} 30. Bxc5 {[%emt 0:02:04]} Qxc5 {[%emt 0:00:02]} 31. Nd3 {[%emt 0:03:09]} Qd6 {[%emt 0:00:09]} 32. Ng3 {[%emt 0:01:13]} e4 {[%emt 0:00:39]} 33. Qf4 {[%emt 0:00:30]} Qd4 {[%emt 0:07:06]} 34. Qe5 {[%emt 0:00:14]} Nc6 {[%emt 0:00:02]} 35. Qxd4 {[%emt 0:00:19]} Nxd4 {[%emt 0:00:02]} 36. Nxb4 {[%emt 0:01:01]} Rb7 {[%emt 0:00:32]} 37. Rd1 {[%emt 0:00:05]} Rd8 {[%emt 0:04:45]} 38. Ne2 {[%emt 0:00:51]} Nxd1 {[%emt 0:00:07]} 0-1

[Event "IND-ch Women 2019"]
[Site "Karaikkudi"]
[Date "2019.07.23"]
[Round "7.8"]
[White "Vijayalakshmi, Subbaraman"]
[Black "Potluri Saye Srreezza"]
[Result "0-1"]
[ECO "D36"]
[WhiteElo "2357"]
[BlackElo "1999"]
[Annotator "ChessBase"]
[PlyCount "142"]
[EventDate "2019.07.19"]
[EventType "swiss"]
[EventCountry "IND"]
[SourceTitle "playchess.com"]
[Source "ChessBase"]
[SourceQuality "1"]
[TimeControl "40/5400+30:1800+30"]

1. Nf3 {[%emt 0:00:40]} d5 {[%emt 0:00:00]} 2. d4 {[%emt 0:00:19]} Nf6 {[%emt 0:00:00]} 3. c4 {[%emt 0:00:32]} e6 {[%emt 0:00:45]} 4. Nc3 {[%emt 0:00:08]} c6 {[%emt 0:00:25]} 5. cxd5 {[%emt 0:04:02]} exd5 {[%emt 0:00:36]} 6. Qc2 {[%emt 0:00:16]} Be7 {[%emt 0:01:07]} 7. Bg5 {[%emt 0:00:25]} O-O {[%emt 0:00:25]} 8. e3 {[%emt 0:00:08]} Nbd7 {[%emt 0:02:23]} 9. Bd3 {[%emt 0:00:13]} Re8 {[%emt 0:00:29]} 10. O-O {[%emt 0:00:17]} Nf8 {[%emt 0:00:19]} 11. Rab1 {[%emt 0:00:20]} g6 {[%emt 0:00:21]} 12. b4 {[%emt 0:00:21]} a6 {[%emt 0:00:07]} 13. a4 {[%emt 0:00:09]} Ne6 {[%emt 0:00:42]} 14. Bh4 {[%emt 0:01:09]} Ng7 {[%emt 0:00:24]} 15. b5 {[%emt 0:01:24]} axb5 {[%emt 0:00:09]} 16. axb5 {[%emt 0:00:05]} Bf5 {[%emt 0:00:32]} 17. bxc6 {[%emt 0:03:02]} bxc6 {[%emt 0:00:48]} 18. Ne5 {[%emt 0:01:47]} Bxd3 {[%emt 0:06:00]} 19. Qxd3 {[%emt 0:01:33]} Rc8 {[%emt 0:01:37]} 20. Qa6 {[%emt 0:04:11]} Nd7 {[%emt 0:20:00]} 21. Bxe7 {[%emt 0:02:02]} Rxe7 {[%emt 0:01:03]} 22. Nxd7 {[%emt 0:01:59]} Qxd7 {[%emt 0:03:51]} 23. Na4 {[%emt 0:02:04]} Qe8 {[%emt 0:01:27]} 24. Nc5 {[%emt 0:03:38]} Ne6 {[%emt 0:02:36]} 25. Rfc1 {[%emt 0:00:39]} Nxc5 {[%emt 0:00:42]} 26. Rxc5 {[%emt 0:00:07]} Rec7 {[%emt 0:00:15]} 27. h3 {[%emt 0:01:14]} Qe6 {[%emt 0:02:25]} 28. Rb7 {[%emt 0:03:48]} Qd7 {[%emt 0:05:12]} 29. Rxc7 {[%emt 0:01:34]} Qxc7 {[%emt 0:00:12]} 30. g3 {[%emt 0:00:14]} Qd7 {[%emt 0:00:24]} 31. h4 {[%emt 0:01:10]} h5 {[%emt 0:00:16]} 32. Qa4 {[%emt 0:01:43]} Qe6 {[%emt 0:01:34]} 33. Qc2 {[%emt 0:01:01]} Kg7 {[%emt 0:01:10]} 34. Kh2 {[%emt 0:02:39]} Kg8 {[%emt 0:00:56]} 35. Ra5 {[%emt 0:02:12]} Rd8 {[%emt 0:08:48]} 36. Ra6 {[%emt 0:01:01]} Rc8 {[%emt 0:01:46]} 37. Kg1 {[%emt 0:02:26]} Qd7 {[%emt 0:08:20]} 38. Qc5 {[%emt 0:01:40]} Qe6 {[%emt 0:03:49]} 39. Qb6 {[%emt 0:03:40]} Qf5 {[%emt 0:15:30]} 40. Qb7 {[%emt 0:00:00]} Qe6 {[%emt 0:00:00]} 41. Kf1 {[%emt 0:06:50]} Qh3+ {[%emt 0:04:16]} 42. Ke1 {[%emt 0:02:07]} Qe6 {[%emt 0:00:26]} 43. Ra8 {[%emt 0:06:05]} Rxa8 {[%emt 0:00:22]} 44. Qxa8+ {[%emt 0:00:07]} Kg7 {[%emt 0:00:47]} 45. Qd8 {[%emt 0:00:17]} Qf5 {[%emt 0:01:27]} 46. Qb8 {[%emt 0:02:29]} Qe6 {[%emt 0:03:40]} 47. Qc7 {[%emt 0:00:55]} Kg8 {[%emt 0:01:03]} 48. Qb8+ {[%emt 0:03:08]} Kg7 {[%emt 0:00:15]} 49. Qb2 {[%emt 0:00:22]} Kg8 {[%emt 0:03:18]} 50. Qc2 {[%emt 0:02:27]} Qd7 {[%emt 0:02:43]} 51. Kd2 {[%emt 0:00:34]} Qb7 {[%emt 0:00:52]} 52. Qc5 {[%emt 0:02:38]} Qb2+ {[%emt 0:00:31]} 53. Ke1 {[%emt 0:00:07]} Qb1+ {[%emt 0:00:24]} 54. Ke2 {[%emt 0:00:05]} Qb2+ {[%emt 0:00:54]} 55. Kf3 {[%emt 0:00:08]} Qb7 {[%emt 0:00:18]} 56. Qd6 {[%emt 0:00:10]} Qc8 {[%emt 0:00:20]} 57. Qf4 {[%emt 0:01:50]} Qe8 {[%emt 0:01:51]} 58. Qf6 {[%emt 0:03:21]} Qe4+ {[%emt 0:01:25]} 59. Ke2 {[%emt 0:00:04]} Qc2+ {[%emt 0:00:18]} 60. Kf1 {[%emt 0:00:05]} Qb1+ {[%emt 0:01:30]} 61. Kg2 {[%emt 0:00:26]} Qe4+ {[%emt 0:00:51]} 62. Kh2 {[%emt 0:00:23]} Qc2 {[%emt 0:00:19]} 63. Qf4 {[%emt 0:02:54]} Kg7 {[%emt 0:00:34]} 64. Qe5+ {[%emt 0:03:32]} Kh7 {[%emt 0:02:15]} 65. Qf6 {[%emt 0:10:32]} Kg8 {[%emt 0:00:09]} 66. g4 {[%emt 0:00:56]} hxg4 {[%emt 0:00:28]} 67. Kg3 {[%emt 0:01:04]} Qe2 {[%emt 0:05:56]} 68. h5 {[%emt 0:02:40]} gxh5 {[%emt 0:00:37]} 69. Kh4 {[%emt 0:00:20]} Qc2 {[%emt 0:03:34]} 70. Kxh5 {[%emt 0:02:36]} g3 {[%emt 0:05:36]} 71. Qg5+ {[%emt 0:01:27]} Qg6+ {[%emt 0:00:16]} 0-1

[Event "IND-ch Women 2019"]
[Site "Karaikkudi"]
[Date "2019.07.23"]
[Round "7.9"]
[White "Kiran, Manisha Mohanty"]
[Black "Mahalakshmi D M"]
[Result "1-0"]
[ECO "B12"]
[WhiteElo "2054"]
[BlackElo "2227"]
[Annotator "ChessBase"]
[PlyCount "73"]
[EventDate "2019.07.19"]
[EventType "swiss"]
[EventCountry "IND"]
[SourceTitle "playchess.com"]
[Source "ChessBase"]
[SourceQuality "1"]
[TimeControl "40/5400+30:1800+30"]

1. e4 {[%emt 0:00:00]} c6 {[%emt 0:00:00]} 2. d4 {[%emt 0:00:00]} d5 {[%emt 0:00:11]} 3. e5 {[%emt 0:00:08]} c5 {[%emt 0:00:14]} 4. dxc5 {[%emt 0:00:10]} Nc6 {[%emt 0:00:05]} 5. Nf3 {[%emt 0:00:21]} e6 {[%emt 0:02:31]} 6. a3 {[%emt 0:00:17]} Qc7 {[%emt 0:01:20]} 7. Bb5 {[%emt 0:07:38]} Bxc5 {[%emt 0:02:00]} 8. O-O {[%emt 0:00:31]} Nge7 {[%emt 0:07:26]} 9. b4 {[%emt 0:01:59]} Bb6 {[%emt 0:00:53]} 10. Bb2 {[%emt 0:03:19]} Ng6 {[%emt 0:04:44]} 11. c4 {[%emt 0:06:13]} dxc4 {[%emt 0:01:54]} 12. Nbd2 {[%emt 0:01:39]} O-O {[%emt 0:03:57]} 13. Nxc4 {[%emt 0:06:22]} Bd7 {[%emt 0:00:49]} 14. Rc1 {[%emt 0:02:24]} Rad8 {[%emt 0:02:15]} 15. Ba4 {[%emt 0:08:25]} Qb8 {[%emt 0:05:56]} 16. Nxb6 {[%emt 0:05:36]} axb6 {[%emt 0:00:14]} 17. Bc2 {[%emt 0:00:12]} Nce7 {[%emt 0:03:14]} 18. Qe2 {[%emt 0:01:43]} Bc6 {[%emt 0:04:35]} 19. b5 {[%emt 0:01:45]} Bd5 {[%emt 0:05:22]} 20. Rfe1 {[%emt 0:06:53]} Nf5 {[%emt 0:02:41]} 21. g3 {[%emt 0:14:43]} Rd7 {[%emt 0:08:23]} 22. h4 {[%emt 0:07:29]} Rfd8 {[%emt 0:09:14]} 23. h5 {[%emt 0:05:57]} Nge7 {[%emt 0:01:56]} 24. Be4 {[%emt 0:00:09]} Nh6 {[%emt 0:12:24]} 25. Ng5 {[%emt 0:00:52]} g6 {[%emt 0:02:03]} 26. Kg2 {[%emt 0:18:15]} Rc7 {[%emt 0:03:34]} 27. hxg6 {[%emt 0:00:00]} hxg6 {[%emt 0:01:11]} 28. Rh1 {[%emt 0:00:00]} Kg7 {[%emt 0:01:24]} 29. Qf3 {[%emt 0:00:00]} Bxe4 {[%emt 0:02:02]} 30. Nxe4 {[%emt 0:00:00]} Neg8 {[%emt 0:00:52]} 31. Qf4 {[%emt 0:00:00]} Nf5 {[%emt 0:04:23]} 32. g4 {[%emt 0:00:00]} Nd4 {[%emt 0:00:38]} 33. Ng5 {[%emt 0:00:00]} Ne2 {[%emt 0:01:55]} 34. Rh7+ {[%emt 0:00:00]} Kf8 {[%emt 0:00:01]} 35. Rxf7+ {[%emt 0:00:00]} Ke8 {[%emt 0:00:18]} 36. Rf8+ {[%emt 0:00:00]} Kd7 {[%emt 0:00:09]} 37. Qf7+ {[%emt 0:00:00]} 1-0

[Event "IND-ch Women 2019"]
[Site "Karaikkudi"]
[Date "2019.07.23"]
[Round "7.10"]
[White "Ramaswamy, Aarthie"]
[Black "Mohota, Nisha"]
[Result "1/2-1/2"]
[ECO "C87"]
[WhiteElo "2020"]
[BlackElo "2221"]
[Annotator "ChessBase"]
[PlyCount "60"]
[EventDate "2019.07.19"]
[EventType "swiss"]
[EventCountry "IND"]
[SourceTitle "playchess.com"]
[Source "ChessBase"]
[SourceQuality "1"]
[TimeControl "40/5400+30:1800+30"]

1. e4 {[%emt 0:00:00]} e5 {[%emt 0:00:00]} 2. Nf3 {[%emt 0:00:00]} Nc6 {[%emt 0:00:00]} 3. Bb5 {[%emt 0:00:00]} a6 {[%emt 0:00:00]} 4. Ba4 {[%emt 0:00:00]} Nf6 {[%emt 0:00:02]} 5. O-O {[%emt 0:00:22]} Be7 {[%emt 0:00:05]} 6. d3 {[%emt 0:00:13]} d6 {[%emt 0:00:15]} 7. c3 {[%emt 0:00:08]} O-O {[%emt 0:00:07]} 8. Re1 {[%emt 0:00:52]} Re8 {[%emt 0:00:19]} 9. Nbd2 {[%emt 0:00:21]} Bf8 {[%emt 0:00:09]} 10. h3 {[%emt 0:06:05]} b5 {[%emt 0:05:29]} 11. Bc2 {[%emt 0:03:02]} d5 {[%emt 0:04:51]} 12. a4 {[%emt 0:14:33]} b4 {[%emt 0:06:37]} 13. a5 {[%emt 0:02:57]} dxe4 {[%emt 0:19:53]} 14. dxe4 {[%emt 0:02:07]} bxc3 {[%emt 0:04:48]} 15. bxc3 {[%emt 0:00:39]} h6 {[%emt 0:00:30]} 16. Nc4 {[%emt 0:10:43]} Qxd1 {[%emt 0:08:59]} 17. Rxd1 {[%emt 0:09:11]} Bb7 {[%emt 0:07:25]} 18. Rb1 {[%emt 0:11:18]} Rab8 {[%emt 0:01:47]} 19. Be3 {[%emt 0:00:02]} Ba8 {[%emt 0:02:43]} 20. Nfd2 {[%emt 0:00:19]} Rxb1 {[%emt 0:03:56]} 21. Rxb1 {[%emt 0:03:04]} Nd7 {[%emt 0:03:41]} 22. Nb3 {[%emt 0:09:53]} Ncb8 {[%emt 0:05:35]} 23. Bd3 {[%emt 0:06:45]} Bc6 {[%emt 0:01:22]} 24. Ncd2 {[%emt 0:00:42]} Bb5 {[%emt 0:01:03]} 25. Bxb5 {[%emt 0:03:46]} axb5 {[%emt 0:00:02]} 26. c4 {[%emt 0:00:33]} b4 {[%emt 0:02:59]} 27. Nf3 {[%emt 0:08:22]} Na6 {[%emt 0:04:31]} 28. Ne1 {[%emt 0:02:30]} Nf6 {[%emt 0:08:24]} 29. f3 {[%emt 0:00:05]} Rd8 {[%emt 0:00:08]} 30. Kf2 {[%emt 0:00:29]} c5 {[%emt 0:03:06]} 1/2-1/2